[Event "September Lviv Tradition 2019"]
[Site "Lviv"]
[Date "2019.09.25"]
[Round "5.1"]
[White "Vakulenko, Oleksandr"]
[Black "Goikhman, Valentin"]
[Result "1-0"]
[ECO "E42"]
[WhiteElo "2167"]
[BlackElo "2295"]
[Annotator "NA"]
[PlyCount "79"]
[EventDate "2019.09.23"]
[EventType "tourn"]
[EventCountry "UKR"]
[SourceTitle "playchess.com"]
[Source "ChessBase"]
[SourceQuality "1"]
[TimeControl "5400+30"]

1. d4 {[%emt 0:00:00]} Nf6 {[%emt 0:00:00]} 2. c4 {[%emt 0:00:00]} e6 {[%emt 0:00:00]} 3. Nc3 {[%emt 0:00:06]} Bb4 {[%emt 0:00:05]} 4. e3 {[%emt 0:00:06]} c5 {[%emt 0:00:56]} 5. Nge2 {[%emt 0:00:56]} b6 {[%emt 0:05:17]} 6. a3 {[%emt 0:03:57]} Ba5 {[%emt 0:03:20]} 7. Rb1 {[%emt 0:03:52]} Qe7 {[%emt 0:05:21]} 8. f3 {[%emt 0:18:24]} O-O {[%emt 0:03:15]} 9. d5 {[%emt 0:02:40]} exd5 {[%emt 0:05:54]} 10. cxd5 {[%emt 0:00:11]} Bb7 {[%emt 0:04:35]} 11. e4 {[%emt 0:01:02]} Nh5 {[%emt 0:02:31]} 12. g4 {[%emt 0:11:10]} Qh4+ {[%emt 0:12:04]} 13. Kd2 {[%emt 0:00:06]} Bxc3+ {[%emt 0:02:28]} 14. bxc3 {[%emt 0:01:35]} f5 {[%emt 0:07:26]} 15. gxh5 {[%emt 0:12:46]} fxe4 {[%emt 0:00:15]} 16. Ng3 {[%emt 0:07:09]} exf3 {[%emt 0:18:51]} 17. c4 {[%emt 0:00:54]} d6 {[%emt 0:02:45]} 18. Qe1 {[%emt 0:09:35]} Nc6 {[%emt 0:11:53]} 19. Qe4 {[%emt 0:09:02]} Rf4 {[%emt 0:05:40]} 20. Qe6+ {[%emt 0:00:10]} Kh8 {[%emt 0:00:33]} 21. dxc6 {[%emt 0:04:21]} Bxc6 {[%emt 0:02:18]} 22. Bd3 {[%emt 0:00:52]} Re8 {[%emt 0:04:50]} 23. Qxd6 {[%emt 0:03:55]} Rf6 {[%emt 0:00:37]} 24. Qc7 {[%emt 0:00:52]} f2 {[%emt 0:00:32]} 25. Bb2 {[%emt 0:01:00]} Qg5+ {[%emt 0:00:17]} 26. Kc3 {[%emt 0:01:42]} Qe3 {[%emt 0:00:42]} 27. Rhd1 {[%emt 0:01:21]} Ba4 {[%emt 0:00:28]} 28. Nf1 {[%emt 0:01:01]} Qg5 {[%emt 0:00:35]} 29. Qg3 {[%emt 0:03:35]} Qxh5 {[%emt 0:00:22]} 30. Kd2 {[%emt 0:00:37]} Qh6+ {[%emt 0:00:34]} 31. Ne3 {[%emt 0:00:01]} Bxd1 {[%emt 0:00:33]} 32. Bxf6 {[%emt 0:00:41]} Qxf6 {[%emt 0:00:27]} 33. Rxd1 {[%emt 0:00:01]} Rd8 {[%emt 0:00:33]} 34. Rf1 {[%emt 0:00:38]} Qd4 {[%emt 0:00:28]} 35. Nc2 {[%emt 0:00:55]} Qxc4 {[%emt 0:00:24]} 36. Rxf2 {[%emt 0:01:03]} Qd5 {[%emt 0:00:30]} 37. Qf3 {[%emt 0:01:13]} Qd6 {[%emt 0:00:36]} 38. Qe4 {[%emt 0:00:43]} g6 {[%emt 0:00:32]} 39. Kc3 {[%emt 0:00:30]} b5 {[%emt 0:00:32]} 40. Bxb5 {[%emt 0:00:31]} 1-0

[Event "September Lviv Tradition 2019"]
[Site "Lviv"]
[Date "2019.09.25"]
[Round "5.2"]
[White "Frolov, Artur"]
[Black "Cherniaiev, Tykhon"]
[Result "1-0"]
[ECO "A46"]
[WhiteElo "2425"]
[BlackElo "2112"]
[Annotator "NA"]
[PlyCount "153"]
[EventDate "2019.09.23"]
[EventType "tourn"]
[EventCountry "UKR"]
[SourceTitle "playchess.com"]
[Source "ChessBase"]
[SourceQuality "1"]
[TimeControl "5400+30"]

1. d4 {[%emt 0:00:00]} Nf6 {[%emt 0:00:44]} 2. Nf3 {[%emt 0:00:00]} e6 {[%emt 0:00:07]} 3. g3 {[%emt 0:00:28]} b5 {[%emt 0:01:01]} 4. Bg2 {[%emt 0:00:26]} Bb7 {[%emt 0:00:27]} 5. O-O {[%emt 0:00:10]} d5 {[%emt 0:01:07]} 6. a4 {[%emt 0:03:03]} b4 {[%emt 0:02:57]} 7. c3 {[%emt 0:03:11]} bxc3 {[%emt 0:07:28]} 8. bxc3 {[%emt 0:00:11]} Be7 {[%emt 0:06:31]} 9. Ba3 {[%emt 0:00:06]} O-O {[%emt 0:00:49]} 10. Nbd2 {[%emt 0:01:54]} Nbd7 {[%emt 0:02:05]} 11. Bxe7 {[%emt 0:03:49]} Qxe7 {[%emt 0:00:11]} 12. Rb1 {[%emt 0:01:04]} Rab8 {[%emt 0:04:04]} 13. Re1 {[%emt 0:08:12]} c5 {[%emt 0:01:54]} 14. e3 {[%emt 0:04:39]} Bc6 {[%emt 0:03:12]} 15. a5 {[%emt 0:03:55]} a6 {[%emt 0:03:27]} 16. c4 {[%emt 0:07:51]} Rxb1 {[%emt 0:16:18]} 17. Qxb1 {[%emt 0:00:16]} Rb8 {[%emt 0:00:19]} 18. Qa1 {[%emt 0:00:08]} Ne4 {[%emt 0:00:24]} 19. cxd5 {[%emt 0:04:44]} Bxd5 {[%emt 0:01:45]} 20. Bf1 {[%emt 0:09:41]} Nxd2 {[%emt 0:02:49]} 21. Nxd2 {[%emt 0:00:15]} cxd4 {[%emt 0:00:05]} 22. Qxd4 {[%emt 0:01:32]} Bc6 {[%emt 0:21:56]} 23. Rc1 {[%emt 0:01:11]} Bb5 {[%emt 0:00:35]} 24. Rc7 {[%emt 0:08:04]} Qd8 {[%emt 0:04:27]} 25. Qd6 {[%emt 0:00:33]} Nf8 {[%emt 0:00:14]} 26. Qxd8 {[%emt 0:01:22]} Rxd8 {[%emt 0:00:12]} 27. Bxb5 {[%emt 0:00:03]} Rxd2 {[%emt 0:00:12]} 28. Bxa6 {[%emt 0:00:18]} Rd5 {[%emt 0:00:04]} 29. Bc4 {[%emt 0:02:16]} Rxa5 {[%emt 0:00:05]} 30. Kg2 {[%emt 0:00:08]} g6 {[%emt 0:00:04]} 31. h4 {[%emt 0:00:27]} h5 {[%emt 0:00:59]} 32. Rb7 {[%emt 0:06:21]} Ra8 {[%emt 0:01:42]} 33. e4 {[%emt 0:00:41]} Rd8 {[%emt 0:00:36]} 34. Bb5 {[%emt 0:00:46]} Nh7 {[%emt 0:02:42]} 35. e5 {[%emt 0:00:40]} g5 {[%emt 0:00:47]} 36. hxg5 {[%emt 0:01:01]} Nxg5 {[%emt 0:07:44]} 37. Be2 {[%emt 0:00:10]} Rd2 {[%emt 0:00:08]} 38. Bxh5 {[%emt 0:00:46]} Ra2 {[%emt 0:00:03]} 39. Rb3 {[%emt 0:02:42]} Kg7 {[%emt 0:02:19]} 40. Re3 {[%emt 0:00:11]} Rb2 {[%emt 0:00:35]} 41. Be2 {[%emt 0:00:07]} Rb4 {[%emt 0:00:47]} 42. f3 {[%emt 0:01:02]} Nh7 {[%emt 0:00:55]} 43. f4 {[%emt 0:00:05]} Nf8 {[%emt 0:00:06]} 44. Rc3 {[%emt 0:01:07]} Ng6 {[%emt 0:01:11]} 45. Kf3 {[%emt 0:00:35]} Ne7 {[%emt 0:00:16]} 46. Bc4 {[%emt 0:01:31]} Nf5 {[%emt 0:00:33]} 47. Bd3 {[%emt 0:00:19]} Rb3 {[%emt 0:02:02]} 48. Rxb3 {[%emt 0:00:39]} Nd4+ {[%emt 0:00:01]} 49. Ke3 {[%emt 0:00:13]} Nxb3 {[%emt 0:00:04]} 50. Bb5 {[%emt 0:00:39]} Kf8 {[%emt 0:00:59]} 51. Kd3 {[%emt 0:01:52]} Ke7 {[%emt 0:00:56]} 52. Kc3 {[%emt 0:02:22]} Na5 {[%emt 0:01:14]} 53. Kb4 {[%emt 0:00:17]} Nb7 {[%emt 0:00:05]} 54. Bc6 {[%emt 0:00:03]} Nd8 {[%emt 0:00:05]} 55. Kc5 {[%emt 0:02:04]} f6 {[%emt 0:00:23]} 56. Bf3 {[%emt 0:00:21]} fxe5 {[%emt 0:01:37]} 57. fxe5 {[%emt 0:00:01]} Nf7 {[%emt 0:00:08]} 58. Kd4 {[%emt 0:00:18]} Nh6 {[%emt 0:00:29]} 59. Ke4 {[%emt 0:00:27]} Kf7 {[%emt 0:02:02]} 60. Kf4 {[%emt 0:01:57]} Nf5 {[%emt 0:00:52]} 61. Bh5+ {[%emt 0:00:06]} Kg7 {[%emt 0:00:19]} 62. Bg4 {[%emt 0:00:14]} Nd4 {[%emt 0:00:14]} 63. Ke4 {[%emt 0:00:09]} Nb3 {[%emt 0:00:19]} 64. Bxe6 {[%emt 0:00:13]} Nd2+ {[%emt 0:00:04]} 65. Ke3 {[%emt 0:00:27]} Nf1+ {[%emt 0:00:11]} 66. Kf4 {[%emt 0:00:03]} Kf8 {[%emt 0:00:16]} 67. Bd5 {[%emt 0:00:32]} Nd2 {[%emt 0:00:05]} 68. Ba2 {[%emt 0:01:02]} Ke7 {[%emt 0:00:05]} 69. g4 {[%emt 0:00:00]} Kf8 {[%emt 0:00:06]} 70. g5 {[%emt 0:00:18]} Kg7 {[%emt 0:00:04]} 71. e6 {[%emt 0:00:08]} Kf8 {[%emt 0:00:04]} 72. g6 {[%emt 0:00:10]} Kg7 {[%emt 0:00:04]} 73. e7 {[%emt 0:00:06]} Kxg6 {[%emt 0:00:04]} 74. e8=Q+ {[%emt 0:00:06]} Kh7 {[%emt 0:00:06]} 75. Kf5 {[%emt 0:00:32]} Nf3 {[%emt 0:00:05]} 76. Qg6+ {[%emt 0:00:07]} Kh8 {[%emt 0:00:03]} 77. Qg8# {[%emt 0:00:05]} 1-0

[Event "September Lviv Tradition 2019"]
[Site "Lviv"]
[Date "2019.09.25"]
[Round "5.3"]
[White "Nester, Ihor"]
[Black "Rydstrom, Tom"]
[Result "1-0"]
[ECO "D26"]
[WhiteElo "2383"]
[BlackElo "2322"]
[Annotator "NA"]
[PlyCount "39"]
[EventDate "2019.09.23"]
[EventType "tourn"]
[EventCountry "UKR"]
[SourceTitle "playchess.com"]
[Source "ChessBase"]
[SourceQuality "1"]
[TimeControl "5400+30"]

1. Nf3 {[%emt 0:00:00]} d5 {[%emt 0:00:00]} 2. d4 {[%emt 0:00:00]} Nf6 {[%emt 0:00:31]} 3. c4 {[%emt 0:00:30]} dxc4 {[%emt 0:02:03]} 4. e3 {[%emt 0:01:14]} e6 {[%emt 0:00:11]} 5. Bxc4 {[%emt 0:00:05]} a6 {[%emt 0:00:03]} 6. O-O {[%emt 0:00:08]} c5 {[%emt 0:00:02]} 7. dxc5 {[%emt 0:00:05]} Bxc5 {[%emt 0:00:29]} 8. Qxd8+ {[%emt 0:00:07]} Kxd8 {[%emt 0:00:03]} 9. Ne5 {[%emt 0:00:31]} Ke7 {[%emt 0:00:54]} 10. Be2 {[%emt 0:00:06]} Nbd7 {[%emt 0:03:59]} 11. Nc4 {[%emt 0:03:17]} Rd8 {[%emt 0:39:20]} 12. Nbd2 {[%emt 0:05:49]} Kf8 {[%emt 0:11:47]} 13. Nb3 {[%emt 0:00:42]} Be7 {[%emt 0:00:36]} 14. Bd2 {[%emt 0:00:18]} Rb8 {[%emt 0:01:54]} 15. Nd4 {[%emt 0:14:06]} Ne4 {[%emt 0:04:56]} 16. Be1 {[%emt 0:00:52]} Nd6 {[%emt 0:01:01]} 17. Ba5 {[%emt 0:06:24]} b6 {[%emt 0:00:38]} 18. Bb4 {[%emt 0:00:30]} Nxc4 {[%emt 0:07:23]} 19. Bxe7+ {[%emt 0:00:16]} Kxe7 {[%emt 0:00:02]} 20. Nc6+ {[%emt 0:00:48]} 1-0

[Event "September Lviv Tradition 2019"]
[Site "Lviv"]
[Date "2019.09.25"]
[Round "5.4"]
[White "Sevostianov, Pavel"]
[Black "Gavrish, Leonid"]
[Result "1-0"]
[ECO "A05"]
[WhiteElo "2260"]
[BlackElo "2022"]
[Annotator "NA"]
[PlyCount "53"]
[EventDate "2019.09.23"]
[EventType "tourn"]
[EventCountry "UKR"]
[SourceTitle "playchess.com"]
[Source "ChessBase"]
[SourceQuality "1"]
[TimeControl "5400+30"]

1. Nf3 {[%emt 0:11:25]} Nf6 {[%emt 0:00:00]} 2. c4 {[%emt 0:00:08]} c5 {[%emt 0:00:00]} 3. g3 {[%emt 0:00:14]} g6 {[%emt 0:00:00]} 4. Bg2 {[%emt 0:00:13]} Bg7 {[%emt 0:00:00]} 5. Nc3 {[%emt 0:00:12]} O-O {[%emt 0:00:11]} 6. d4 {[%emt 0:01:57]} cxd4 {[%emt 0:00:08]} 7. Qxd4 {[%emt 0:00:45]} Nc6 {[%emt 0:00:08]} 8. Qh4 {[%emt 0:00:08]} d5 {[%emt 0:00:12]} 9. cxd5 {[%emt 0:02:37]} Na5 {[%emt 0:13:27]} 10. O-O {[%emt 0:03:29]} h5 {[%emt 0:01:17]} 11. e4 {[%emt 0:01:25]} Nc4 {[%emt 0:03:36]} 12. h3 {[%emt 0:08:01]} Nh7 {[%emt 0:03:12]} 13. g4 {[%emt 0:06:23]} hxg4 {[%emt 0:10:05]} 14. hxg4 {[%emt 0:00:18]} e6 {[%emt 0:01:19]} 15. Ng5 {[%emt 0:04:30]} Nxg5 {[%emt 0:04:03]} 16. Bxg5 {[%emt 0:00:08]} Qb6 {[%emt 0:10:27]} 17. b3 {[%emt 0:02:47]} Bxc3 {[%emt 0:03:41]} 18. bxc4 {[%emt 0:00:03]} exd5 {[%emt 0:02:33]} 19. Rab1 {[%emt 0:09:48]} Qa6 {[%emt 0:04:32]} 20. Rb3 {[%emt 0:01:45]} Bg7 {[%emt 0:04:28]} 21. Rh3 {[%emt 0:01:50]} f6 {[%emt 0:01:30]} 22. Bh6 {[%emt 0:00:44]} g5 {[%emt 0:07:18]} 23. Qh5 {[%emt 0:00:25]} Bxh6 {[%emt 0:01:05]} 24. Qxh6 {[%emt 0:00:22]} Kf7 {[%emt 0:01:30]} 25. Qh7+ {[%emt 0:00:46]} Ke6 {[%emt 0:02:16]} 26. exd5+ {[%emt 0:00:11]} Kd6 {[%emt 0:02:23]} 27. c5+ {[%emt 0:00:12] Kxd5} 1-0

[Event "September Lviv Tradition 2019"]
[Site "Lviv"]
[Date "2019.09.25"]
[Round "5.5"]
[White "Siniauski, Artsiom"]
[Black "Prydun, Andriy"]
[Result "1/2-1/2"]
[ECO "B17"]
[WhiteElo "2233"]
[BlackElo "2273"]
[Annotator "NA"]
[PlyCount "110"]
[EventDate "2019.09.23"]
[EventType "tourn"]
[EventCountry "UKR"]
[SourceTitle "playchess.com"]
[Source "ChessBase"]
[SourceQuality "1"]
[TimeControl "5400+30"]

1. e4 {[%emt 0:00:00]} c6 {[%emt 0:00:00]} 2. d4 {[%emt 0:00:00]} d5 {[%emt 0:00:00]} 3. Nd2 {[%emt 0:00:00]} dxe4 {[%emt 0:00:00]} 4. Nxe4 {[%emt 0:00:01]} Nd7 {[%emt 0:00:00]} 5. Nf3 {[%emt 0:00:14]} Ngf6 {[%emt 0:00:04]} 6. Ng3 {[%emt 0:00:07]} e6 {[%emt 0:00:06]} 7. Bd3 {[%emt 0:00:13]} c5 {[%emt 0:00:07]} 8. O-O {[%emt 0:03:50]} cxd4 {[%emt 0:00:10]} 9. Nxd4 {[%emt 0:00:36]} Nc5 {[%emt 0:00:02]} 10. Be2 {[%emt 0:02:21]} Be7 {[%emt 0:00:31]} 11. c3 {[%emt 0:04:11]} O-O {[%emt 0:02:26]} 12. Qc2 {[%emt 0:02:36]} Bd7 {[%emt 0:02:45]} 13. Rd1 {[%emt 0:01:25]} Rc8 {[%emt 0:08:17]} 14. Bd2 {[%emt 0:02:43]} Qc7 {[%emt 0:03:21]} 15. a4 {[%emt 0:03:47]} b6 {[%emt 0:13:25]} 16. b4 {[%emt 0:10:38]} Nb7 {[%emt 0:00:05]} 17. Qb3 {[%emt 0:00:10]} Nd6 {[%emt 0:03:32]} 18. Nb5 {[%emt 0:02:01]} Bxb5 {[%emt 0:02:13]} 19. axb5 {[%emt 0:00:18]} Nd5 {[%emt 0:00:22]} 20. Rac1 {[%emt 0:08:10]} Nc4 {[%emt 0:06:36]} 21. Be1 {[%emt 0:00:48]} Bf6 {[%emt 0:10:42]} 22. Ne4 {[%emt 0:01:27]} Be5 {[%emt 0:03:17]} 23. g3 {[%emt 0:00:32]} Rfd8 {[%emt 0:04:00]} 24. Ng5 {[%emt 0:17:52]} Bf6 {[%emt 0:05:31]} 25. Ne4 {[%emt 0:04:09]} Be5 {[%emt 0:00:16]} 26. Ng5 {[%emt 0:00:13]} Bf6 {[%emt 0:05:40]} 27. Nf3 {[%emt 0:00:42]} Rd7 {[%emt 0:09:14]} 28. Nd4 {[%emt 0:01:50]} Ne5 {[%emt 0:00:02]} 29. c4 {[%emt 0:02:48]} Ne7 {[%emt 0:00:02]} 30. Nf3 {[%emt 0:00:34]} Nxf3+ {[%emt 0:01:01]} 31. Qxf3 {[%emt 0:08:29]} Bd4 {[%emt 0:07:46]} 32. Bd3 {[%emt 0:06:04]} Qd8 {[%emt 0:02:50]} 33. Be4 {[%emt 0:02:32]} Rd6 {[%emt 0:03:40]} 34. Qe2 {[%emt 0:02:02]} e5 {[%emt 0:01:11]} 35. Bd2 {[%emt 0:01:30]} Rc7 {[%emt 0:00:35]} 36. Be3 {[%emt 0:01:24]} Bxe3 {[%emt 0:00:51]} 37. fxe3 {[%emt 0:00:31]} Rxc4 {[%emt 0:00:45]} 38. Qxc4 {[%emt 0:02:44]} Rxd1+ {[%emt 0:00:08]} 39. Rxd1 {[%emt 0:00:06]} Qxd1+ {[%emt 0:00:02]} 40. Kf2 {[%emt 0:00:21]} Qd2+ {[%emt 0:01:43]} 41. Kf3 {[%emt 0:00:51]} Qd6 {[%emt 0:05:16]} 42. Bc6 {[%emt 0:00:45]} g6 {[%emt 0:00:25]} 43. e4 {[%emt 0:01:58]} Kg7 {[%emt 0:00:15]} 44. Bd5 {[%emt 0:00:04]} h5 {[%emt 0:00:56]} 45. Ke3 {[%emt 0:00:17]} f5 {[%emt 0:00:30]} 46. Qa2 {[%emt 0:01:55]} f4+ {[%emt 0:00:50]} 47. Kf3 {[%emt 0:01:34]} Qxb4 {[%emt 0:01:18]} 48. Qxa7 {[%emt 0:00:37]} g5 {[%emt 0:00:35]} 49. Qc7 {[%emt 0:01:28]} g4+ {[%emt 0:00:28]} 50. Kf2 {[%emt 0:00:18]} Qb2+ {[%emt 0:00:36]} 51. Ke1 {[%emt 0:00:40]} Qb4+ {[%emt 0:00:18]} 52. Kd1 {[%emt 0:00:41]} Qb1+ {[%emt 0:00:34]} 53. Kd2 {[%emt 0:00:09]} Qb2+ {[%emt 0:00:28]} 54. Ke1 {[%emt 0:00:33]} Qb4+ {[%emt 0:00:21]} 55. Kd1 {[%emt 0:00:10]} Qb1+ {[%emt 0:00:43]} 1/2-1/2

[Event "September Lviv Tradition 2019"]
[Site "Lviv"]
[Date "2019.09.26"]
[Round "6.1"]
[White "Goikhman, Valentin"]
[Black "Prydun, Andriy"]
[Result "1-0"]
[ECO "B12"]
[WhiteElo "2295"]
[BlackElo "2273"]
[Annotator "NA"]
[PlyCount "57"]
[EventDate "2019.09.23"]
[EventType "tourn"]
[EventCountry "UKR"]
[SourceTitle "playchess.com"]
[Source "ChessBase"]
[SourceQuality "1"]
[TimeControl "5400+30"]

1. e4 {[%emt 0:00:00]} c6 {[%emt 0:00:00]} 2. d4 {[%emt 0:00:26]} d5 {[%emt 0:00:00]} 3. e5 {[%emt 0:00:26]} Bf5 {[%emt 0:00:00]} 4. Nf3 {[%emt 0:03:16]} e6 {[%emt 0:00:00]} 5. c4 {[%emt 0:03:17]} Nd7 {[%emt 0:01:43]} 6. Nc3 {[%emt 0:02:11]} Ne7 {[%emt 0:01:14]} 7. b3 {[%emt 0:09:20]} Bg4 {[%emt 0:02:08]} 8. Be2 {[%emt 0:03:50]} Nf5 {[%emt 0:01:17]} 9. O-O {[%emt 0:01:35]} dxc4 {[%emt 0:00:45]} 10. bxc4 {[%emt 0:00:27]} Nb6 {[%emt 0:00:05]} 11. c5 {[%emt 0:03:46]} Nd5 {[%emt 0:16:56]} 12. Ne4 {[%emt 0:00:33]} Be7 {[%emt 0:00:12]} 13. h3 {[%emt 0:10:00]} Bxf3 {[%emt 0:00:15]} 14. Bxf3 {[%emt 0:00:08]} O-O {[%emt 0:00:21]} 15. Nd6 {[%emt 0:04:00]} Bxd6 {[%emt 0:00:14]} 16. exd6 {[%emt 0:04:34]} b6 {[%emt 0:06:11]} 17. Re1 {[%emt 0:10:23]} bxc5 {[%emt 0:05:10]} 18. dxc5 {[%emt 0:05:32]} Qa5 {[%emt 0:00:12]} 19. Bxd5 {[%emt 0:12:50]} cxd5 {[%emt 0:00:09]} 20. g4 {[%emt 0:01:31]} Nd4 {[%emt 0:00:08]} 21. Qxd4 {[%emt 0:02:50]} Qxe1+ {[%emt 0:00:12]} 22. Kg2 {[%emt 0:00:07]} Rac8 {[%emt 0:12:40]} 23. d7 {[%emt 0:02:44]} Rc6 {[%emt 0:06:21]} 24. Bd2 {[%emt 0:01:19]} Qe2 {[%emt 0:15:10]} 25. Ba5 {[%emt 0:05:22]} Qc2 {[%emt 0:11:19]} 26. d8=Q {[%emt 0:01:45]} Rxd8 {[%emt 0:00:03]} 27. Bxd8 {[%emt 0:00:05]} Rxc5 {[%emt 0:00:02]} 28. Bg5 {[%emt 0:03:13]} h6 {[%emt 0:01:59]} 29. Rc1 1-0

[Event "September Lviv Tradition 2019"]
[Site "Lviv"]
[Date "2019.09.26"]
[Round "6.2"]
[White "Gavrish, Leonid"]
[Black "Siniauski, Artsiom"]
[Result "1/2-1/2"]
[ECO "A20"]
[WhiteElo "2022"]
[BlackElo "2233"]
[Annotator "NA"]
[PlyCount "97"]
[EventDate "2019.09.23"]
[EventType "tourn"]
[EventCountry "UKR"]
[SourceTitle "playchess.com"]
[Source "ChessBase"]
[SourceQuality "1"]
[TimeControl "5400+30"]

1. c4 {[%emt 0:00:00]} e5 {[%emt 0:00:00]} 2. g3 {[%emt 0:00:00]} Nf6 {[%emt 0:00:09]} 3. Bg2 {[%emt 0:00:00]} d5 {[%emt 0:00:22]} 4. cxd5 {[%emt 0:00:03]} Nxd5 {[%emt 0:00:10]} 5. Nf3 {[%emt 0:00:18]} Nc6 {[%emt 0:00:17]} 6. O-O {[%emt 0:00:35]} Nb6 {[%emt 0:00:19]} 7. Nc3 {[%emt 0:00:25]} Be7 {[%emt 0:01:17]} 8. d3 {[%emt 0:00:22]} O-O {[%emt 0:00:46]} 9. Be3 {[%emt 0:06:28]} Be6 {[%emt 0:02:21]} 10. a3 {[%emt 0:06:56]} a5 {[%emt 0:05:56]} 11. Na4 {[%emt 0:03:46]} Nxa4 {[%emt 0:03:40]} 12. Qxa4 {[%emt 0:00:13]} Qd7 {[%emt 0:00:23]} 13. Rfc1 {[%emt 0:01:08]} f6 {[%emt 0:04:22]} 14. Qb5 {[%emt 0:08:41]} Bd6 {[%emt 0:23:57]} 15. Nd2 {[%emt 0:21:15]} Nd8 {[%emt 0:03:27]} 16. Qxd7 {[%emt 0:01:07]} Bxd7 {[%emt 0:00:08]} 17. Ne4 {[%emt 0:06:09]} Bc6 {[%emt 0:01:41]} 18. Bc5 {[%emt 0:11:04]} Bxc5 {[%emt 0:02:55]} 19. Nxc5 {[%emt 0:00:22]} Bxg2 {[%emt 0:02:00]} 20. Kxg2 {[%emt 0:00:14]} Rf7 {[%emt 0:00:59]} 21. f4 {[%emt 0:04:06]} b6 {[%emt 0:01:49]} 22. Ne4 {[%emt 0:01:03]} exf4 {[%emt 0:00:32]} 23. gxf4 {[%emt 0:00:13]} Ne6 {[%emt 0:00:20]} 24. e3 {[%emt 0:04:16]} f5 {[%emt 0:01:34]} 25. Ng5 {[%emt 0:01:05]} Nxg5 {[%emt 0:09:58]} 26. fxg5 {[%emt 0:00:08]} Rd8 {[%emt 0:00:20]} 27. Rc3 {[%emt 0:02:54]} Rfd7 {[%emt 0:01:03]} 28. Rd1 {[%emt 0:04:29]} c5 {[%emt 0:00:46]} 29. Kf3 {[%emt 0:01:01]} Kf7 {[%emt 0:00:44]} 30. Kf4 {[%emt 0:03:29]} Rd5 {[%emt 0:02:25]} 31. h4 Kg6 {[%emt 0:00:54]} 32. a4 {[%emt 0:04:37]} R8d6 {[%emt 0:03:06]} 33. Rd2 {[%emt 0:02:00]} h6 {[%emt 0:03:38]} 34. Rg2 {[%emt 0:03:17]} Rxd3 {[%emt 0:06:22]} 35. gxh6+ {[%emt 0:00:20]} Kxh6 {[%emt 0:00:17]} 36. Rxd3 {[%emt 0:00:37]} Rxd3 {[%emt 0:00:07]} 37. Kxf5 {[%emt 0:00:21]} Rxe3 {[%emt 0:00:00]} 38. Rg6+ {[%emt 0:00:15]} Kh5 {[%emt 0:01:11]} 39. Rxb6 {[%emt 0:01:01]} Kxh4 {[%emt 0:00:29]} 40. Rb5 {[%emt 0:00:54]} g5 {[%emt 0:00:53]} 41. Rxa5 {[%emt 0:00:36]} g4 {[%emt 0:01:02]} 42. Ra8 {[%emt 0:00:11]} Re2 {[%emt 0:02:49]} 43. a5 {[%emt 0:03:05]} Rxb2 {[%emt 0:03:18]} 44. a6 {[%emt 0:00:01]} Ra2 {[%emt 0:00:20]} 45. a7 {[%emt 0:00:02]} Kg3 {[%emt 0:00:09]} 46. Rg8 {[%emt 0:00:13]} Rxa7 {[%emt 0:00:11]} 47. Rxg4+ {[%emt 0:00:02]} Kf3 {[%emt 0:00:08]} 48. Rc4 {[%emt 0:00:10]} Rc7 {[%emt 0:00:41]} 49. Ke5 {[%emt 0:00:13] Ke4+} 1/2-1/2

[Event "September Lviv Tradition 2019"]
[Site "Lviv"]
[Date "2019.09.26"]
[Round "6.3"]
[White "Rydstrom, Tom"]
[Black "Sevostianov, Pavel"]
[Result "1-0"]
[ECO "C41"]
[WhiteElo "2322"]
[BlackElo "2260"]
[Annotator "NA"]
[PlyCount "55"]
[EventDate "2019.09.23"]
[EventType "tourn"]
[EventCountry "UKR"]
[SourceTitle "playchess.com"]
[Source "ChessBase"]
[SourceQuality "1"]
[TimeControl "5400+30"]

1. e4 {[%emt 0:00:44]} d6 {[%emt 0:00:00]} 2. d4 {[%emt 0:00:05]} Nf6 {[%emt 0:00:00]} 3. Nc3 {[%emt 0:00:03]} e5 {[%emt 0:00:00]} 4. Nf3 {[%emt 0:00:12]} Nbd7 {[%emt 0:00:05]} 5. Bc4 {[%emt 0:00:06]} Be7 {[%emt 0:00:20]} 6. O-O {[%emt 0:00:31]} O-O {[%emt 0:00:39]} 7. Re1 {[%emt 0:00:36]} Nb6 {[%emt 0:04:05]} 8. Bf1 {[%emt 0:00:29]} Nfd7 {[%emt 0:02:13]} 9. a4 {[%emt 0:02:00]} a5 {[%emt 0:00:07]} 10. Be3 {[%emt 0:04:25]} exd4 {[%emt 0:00:45]} 11. Nxd4 {[%emt 0:04:22]} Nc5 {[%emt 0:03:16]} 12. g3 {[%emt 0:19:13]} Bf6 {[%emt 0:00:22]} 13. Bg2 {[%emt 0:00:55]} Re8 {[%emt 0:01:00]} 14. b3 {[%emt 0:01:09]} Bd7 $16 {[%emt 0:02:48]} 15. Qd2 {[%emt 0:00:31]} Qc8 {[%emt 0:01:01]} 16. Rad1 {[%emt 0:02:56]} Bg4 {[%emt 0:02:14]} 17. f3 {[%emt 0:01:50]} Bd7 {[%emt 0:00:20]} 18. Qf2 {[%emt 0:08:37]} Qd8 {[%emt 0:07:24]} 19. f4 {[%emt 0:01:08]} Qc8 {[%emt 0:03:08]} 20. Qf1 {[%emt 0:08:22]} Re7 {[%emt 0:07:42]} 21. h3 {[%emt 0:00:14]} Qe8 {[%emt 0:03:55]} 22. Qf2 {[%emt 0:04:05]} Rd8 {[%emt 0:12:04]} 23. Ndb5 {[%emt 0:09:23]} Bxb5 {[%emt 0:01:58]} 24. Nxb5 {[%emt 0:00:06]} Nxe4 {[%emt 0:05:19]} 25. Bxe4 {[%emt 0:00:26]} Rxe4 {[%emt 0:00:06]} 26. Nxc7 {[%emt 0:00:13]} Qc6 {[%emt 0:00:11]} 27. Bxb6 {[%emt 0:00:39]} Rxe1+ {[%emt 0:00:09]} 28. Rxe1 {[%emt 0:00:03]} 1-0